Cogmind - Beta 14 @@@ ROGUE MODE // 2024.11.24 @ 16:33:53 Player: UberDoot Result: Destroyed by G-67 Veteran with Field Laser Performance ------------- Evolutions (7) 3500 Regions Visited (7) 1400 Robots Destroyed (86) 430 Value Destroyed (3318) 3318 Prototype IDs (13) 260 Alien Tech Used (0) 0 Bonus (-518) -518 TOTAL SCORE: 8390 Bonus ------- Follower Combat Kills 48 Registered with UFD 300 Friendly Fire -866 Cogmind --------- Core Integrity 0/1300 Matter 290/300 Energy 98/100 System Corruption 8% Temperature Cool (0) Movement Core (50) Location -3/Research Parts ------- > --- POWER (3) -------- (None) > --- PROPULSION (6) --- (None) > --- UTILITY (8) ------ (None) > --- WEAPON (4) ------- (None) > --- INVENTORY (5) ---- Seismic Detector Transmission Jammer Quantum Rifle Advanced Plasma Cannon Peak State ------------ > --- POWER ------------ Light Antimatter Reactor Particle Reactor Particle Reactor > --- PROPULSION ------- Advanced Medium Treads Advanced Medium Treads Advanced Medium Treads Advanced Medium Treads Advanced Medium Treads Advanced Medium Treads > --- UTILITY ---------- Advanced Cryofiber Web Advanced Heat Sink Large Storage Unit Advanced Targeting Computer Core Analyzer Heavy Armor Plating Advanced Shield Generator > --- WEAPON ----------- Quantum Rifle Cooled Proton Cannon Advanced Plasma Cannon Companion Sword > --- INVENTORY -------- Particle Reactor Advanced Medium Treads Armored Huge Wheel Advanced Heat Sink Compact Battery Seismic Detector Advanced Targeting Computer Transmission Jammer Improved Remote Force Field Improved Arc Projector Long-range Proton Cannon Long-range Proton Cannon Smartbomb Launcher [Rating: 132] Favorites ----------- Power Ion Engine Engine Ion Engine Power Core Neutrino Core Reactor Particle Reactor Propulsion Light Treads Treads Light Treads Leg Aluminum Leg Wheel Armored Huge Wheel Hover Unit Antigrav Array Utility Large Storage Unit Device Seismic Detector Storage Large Storage Unit Processor Core Analyzer Protection Light Armor Plating Weapon EM Pulse Gun Energy Gun EM Pulse Gun Energy Cannon Long-range Proton Cannon Ballistic Gun Subdweller Machine Gun Ballistic Cannon Assault Cannon Launcher Smartbomb Launcher Special Weapon CPS Tube Impact Weapon Hammer Slashing Weapon Companion Sword Build | -11 -10 -10 -7 -7 -5 -4 -3 ------- Run | Yrd Mat Sub Rec Scr Fac Fac Res Slots Evolved 14 | . . . . . 10 2 2 Power 2 | . . . . . 1 . 1 Propulsion 4 | . . . . . 2 1 1 Utility 6 | . . . . . 5 1 . Weapon 2 | . . . . . 2 . . Parts Attached 152 | 9 15 29 9 5 36 16 33 Power 15 | 1 1 1 . . 5 2 5 Engine 7 | 1 1 1 . . 3 . 1 Core 4 | . . . . . 2 2 . Reactor 4 | . . . . . . . 4 Propulsion 27 | 4 1 2 3 . 5 5 7 Treads 13 | 2 1 2 . . 1 3 4 Leg 3 | 2 . . . . . . 1 Wheel 10 | . . . 3 . 4 2 1 Hover 1 | . . . . . . . 1 Flight . | . . . . . . . . Utility 43 | 2 5 10 1 2 9 5 9 Device 22 | 1 2 5 1 . 3 3 7 Storage 7 | 1 2 . . 2 2 . . Processor 5 | . . . . . 2 2 1 Hackware . | . . . . . . . . Protection 9 | . 1 5 . . 2 . 1 Artifact . | . . . . . . . . Weapon 67 | 2 8 16 5 3 17 4 12 Energy Gun 18 | . 5 6 1 . 4 . 2 Energy Cannon 14 | . . . . . 2 3 9 Ballistic Gun 11 | 2 . 2 2 1 3 1 . Ballistic Cannon 7 | . . 2 1 1 3 . . Launcher 9 | . . 4 . . 4 . 1 Special Weapon 1 | . . . . . 1 . . Impact Weapon 6 | . 3 2 1 . . . . Slashing Weapon 1 | . . . . 1 . . . Piercing Weapon . | . . . . . . . . Special Melee Weapon . | . . . . . . . . Unidentified Prototypes 3 | . . . . 1 . 1 1 Corrupted Parts 3 | . . . 1 . . 1 1 System Corruption 15 | . . . 5 . . 9 1 Parts Lost 46 | . 1 5 . . 17 . 23 Power 7 | . . . . . 3 . 4 Propulsion 11 | . . 2 . . 3 . 6 Utility 14 | . 1 . . . 5 . 8 Weapon 14 | . . 3 . . 6 . 5 Highest Loss Streak 21 | . 1 1 . . 9 . 21 To Critical Strikes 1 | . . . . . . . 1 Average Slot Usage (%) 87 | . 99 99 96 77 72 90 86 Engine 11 | . 14 14 14 14 3 3 . Core 1 | . . . . . 3 6 4 Treads 13 | . 27 27 10 . 2 10 24 Wheel 7 | . . . 14 14 8 8 . Device 9 | . 7 10 12 6 9 19 14 Storage 11 | . 14 14 14 14 5 5 3 Processor 2 | . . . . . 8 14 10 Protection 2 | . 6 3 1 . 3 . 1 Energy Gun 7 | . 19 20 . . 4 . . Energy Cannon 1 | . . . . . 1 11 11 Ballistic Gun 6 | . 7 2 13 10 3 1 . Ballistic Cannon 7 | . . 3 13 14 4 1 . Slashing Weapon 2 | . . . . 3 5 5 3 Peak Build Rating 132 | 7 8 14 18 29 67 106 132 Average Rating 31 | 5 7 11 13 21 55 95 110 On Entrance 28 | . 7 8 9 18 29 52 106 Naked Turns 54 | . . . . . . . 54 Heaviest Build 237 | 15 32 35 35 214 237 86 119 Greatest Support 180 | 40 40 40 28 28 44 64 180 Greatest Overweight (x) 8 | 2 . 1 2 7 8 3 . Average Overweight (x) 1 | . . . 1 3 4 1 . Largest Inventory Capacity 35 | 8 15 15 15 35 35 15 15 Average Capacity 19 | 7 10 15 15 25 30 15 14 Most Carried 35 | 7 15 15 15 34 35 15 15 Average Carried 16 | 5 9 14 14 19 27 14 13 Final Capacity 35 | 8 15 15 15 35 15 15 5 Final Carried 34 | 7 15 15 15 34 14 15 4 Class Distribution -------------------- 59% | Mutant 18% | Hauler-Mutant 12% | Gunner 6% | Hauler-Gunner Dominant Class ---------------- Mutant | -10/Materials Mutant | -10/Subcaves Mutant | -7/Recycling Hauler-Mutant | -7/Scraptown Hauler-Gunner | -5/Factory Gunner | -4/Factory Gunner | -3/Research Resources | -11 -10 -10 -7 -7 -5 -4 -3 ----------- Run | Yrd Mat Sub Rec Scr Fac Fac Res Matter Collected 2827 | 243 445 410 215 66 760 . 688 Remotely . | . . . . . . . . Salvage Created 3774 | 196 501 344 100 . 1037 . 1596 Parts 194 | 11 37 26 3 . 54 . 63 Haulers Intercepted 3 | . 2 . . . 1 . . Recyclers Shooed 6 | 1 . . . . 2 . 3 Parts Field Recycled . | . . . . . . . . Retrieved Matter . | . . . . . . . . Parts Self-Destructed 15 | . . 15 . . . . . Prevented . | . . . . . . . . Kills | -11 -10 -10 -7 -7 -5 -4 -3 ------- Run | Yrd Mat Sub Rec Scr Fac Fac Res Combat Hostiles Destroyed 60 | . 9 10 . . 21 . 20 Melee 4 | . . . . . 2 . 2 Guns 15 | . 9 4 . . 2 . . Cannons 21 | . . 2 . . 6 . 13 AOE 16 | . . 3 . . 11 . 2 Classes Destroyed 16 | 2 5 2 . . 6 . 1 Worker 2 | . . . . . 1 . 1 Builder 5 | . . . . . 4 . 1 Tunneler 5 | 5 . . . . . . . Hauler 3 | . 2 . . . 1 . . Recycler 5 | 1 . . . . 2 . 2 Mechanic 1 | . . . . . 1 . . Operator 2 | . 1 . . . . . 1 Watcher 3 | . 3 . . . . . . Swarmer 13 | . 3 1 . . 5 . 4 Grunt 21 | . 6 . . . 10 . 5 Sentry 5 | . . . . . . . 5 Hunter 6 | . . . . . 2 . 4 Programmer 6 | . . . . . 4 . 2 Artisan 2 | . . 2 . . . . . Subdweller 9 | . . 9 . . . . . Mutant 1 | . . . . . 1 . . Best Kill Streak 9 | 2 3 2 . . 9 . 6 Combat Bots Only 9 | . 2 2 . . 9 . 5 Max Kills in Single Turn 8 | 1 2 1 . . 8 . 3 Gunslinging 1 | . 1 . . . . . . Exploded 5 | . . 1 . . 5 . 1 Melee 1 | . . . . . 1 . 1 Uniques/NPCs Destroyed . | . . . . . . . . Combat | -11 -10 -10 -7 -7 -5 -4 -3 -------- Run | Yrd Mat Sub Rec Scr Fac Fac Res Hostile Shots Fired 803 | . 40 49 . . 201 . 513 Missed 249 | . 5 9 . . 60 . 175 Damage Taken 9191 | . 443 733 . . 2635 64 5316 Core 1699 | . 62 103 . . 229 . 1305 Absorbed by Shields 702 | . . . . . . 20 682 Regen/Repaired (Parts) 734 | . 76 . . 298 187 . 173 Core Remaining (%) 77 | 100 . . . 34 77 100 . Volleys Fired 188 | 15 41 45 4 . 45 . 38 Largest 3 | 2 2 2 1 . 3 . 3 Hottest 297 | 40 80 90 40 . 170 . 297 Shots Fired 399 | 30 82 78 4 . 116 1 88 Gun 248 | 30 82 47 4 . 76 . 9 Cannon 125 | . . 17 . . 32 1 75 Launcher 26 | . . 14 . . 8 . 4 Special . | . . . . . . . . Kinetic 185 | 30 55 28 . . 72 . . Thermal 36 | . . 5 . . 19 . 12 Explosive 26 | . . 14 . . 8 . 4 Electromagnetic 152 | . 27 31 4 . 17 1 72 Robot Hit Streak 19 | 5 19 17 5 . 8 . 12 Robot Miss Streak 5 | 2 3 1 . . 5 . 4 Penetration Max 1 | . . . . . 1 . . Secondary Targets 5 | . 3 . . . 2 . . Max Gunslinging Chain 1 | . 1 . . . 1 . . Shots Hit Robots 288 | 17 58 54 4 . 78 . 77 Core Hits 156 | 7 22 20 2 . 55 . 50 Critical Kills . | . . . . . . . . Critical Parts Destroyed 1 | 1 . . . . . . . Critical Strikes 3 | 1 . 1 . . 1 . . Destroy 1 | 1 . . . . . . . Blast 2 | . . 1 . . 1 . . Melee Attacks 80 | . 6 9 6 . 19 5 35 Impact 21 | . 6 9 6 . . . . Slashing 59 | . . . . . 19 5 35 Piercing . | . . . . . . . . Sneak Attacks 3 | . . 1 . . 2 . . Combat Hostiles . | . . . . . . . . Follow-up Attacks 1 | . . . . . . . 1 Damage Inflicted 10684 | 227 803 1047 53 . 4250 . 4304 Guns 2655 | 227 781 457 53 . 988 . 149 Cannons 3091 | . . 311 . . 788 . 1992 Explosions 3657 | . . 279 . . 2152 . 1226 Melee 1279 | . 20 . . . 322 . 937 Ramming 2 | . 2 . . . . . . Kinetic 2479 | 227 433 480 . . 1339 . . Thermal 947 | . . 24 . . 396 . 527 Explosive 3489 | . . 279 . . 2065 . 1145 Electromagnetic 2488 | . 348 264 53 . 128 . 1695 Impact 20 | . 20 . . . . . . Slashing 1259 | . . . . . 322 . 937 Piercing . | . . . . . . . . Highest Corruption 10 | . . . 5 . 9 10 8 Average Corruption 4 | . . . 5 . 8 8 2 Corruption Purged . | . . . . . . . . Corruption Blocked . | . . . . . . . . Effects 54 | . . . 21 . 19 6 8 Message Errors 14 | . . . 6 . 5 1 2 Matter Fused 11 | . . . 6 . 2 1 2 Heat Flow Errors 11 | . . . 5 . 3 1 2 Energy Discharges 3 | . . . 1 . 1 1 . Data Loss (minor) 5 | . . . 2 . 1 . 2 Data Loss (major) 5 | . . . 1 . 3 1 . Misfires 2 | . . . . . 1 1 . Weapon Failures 3 | . . . . . 3 . . Overload Shots . | . . . . . . . . Overflow Damage 305 | . . 3 . . 140 . 162 Projectiles 60 | . . . . . 20 . 40 Explosions 192 | . . 3 . . 120 . 69 Melee 53 | . . . . . . . 53 Knockbacks 9 | . 1 2 . . 6 . . Impact 1 | . 1 . . . . . . Kinetic 8 | . . 2 . . 6 . . Secondary . | . . . . . . . . Self-Inflicted Damage 272 | . . 42 . . 122 . 108 Shots 9 | . . 2 . . 3 . 4 Rammed 2 | . 2 . . . . . . Targets Rammed 2 | . 2 . . . . . . Kicked . | . . . . . . . . Crushed . | . . . . . . . . Highest Temperature 470 | . 120 . 253 . 259 . 470 Average Temperature 117 | . 30 . 103 . 88 . 207 Received Heat Transfer 1399 | . 225 30 . . 480 . 664 Effects 3 | . . . . . . . 3 Shutdowns 3 | . . . . . . . 3 Siege Activations . | . . . . . . . . Robots Corrupted 4 | . . 1 . . . . 3 Combat Hostiles 4 | . . 1 . . . . 3 Parts Fried 15 | . 5 2 1 . . . 7 Impact Corruptions . | . . . . . . . . Robots Melted . | . . . . . . . . Combat Hostiles . | . . . . . . . . Parts Melted 4 | . . . . . . . 4 Heat Transferred 1114 | . . 74 . . 531 . 509 Parts Sabotaged . | . . . . . . . . Parts Stolen . | . . . . . . . . Parts Stripped . | . . . . . . . . Power Chain Reactions 1 | . . . . . . . 1 Alert | -11 -10 -10 -7 -7 -5 -4 -3 ------- Run | Yrd Mat Sub Rec Scr Fac Fac Res Peak Influence 331 | 30 172 . 58 . 331 171 313 Initial 161 | . 19 . 33 . . 161 . Average 76 | 13 53 . 22 . 90 116 140 Maximum Alert Level 1 | . . . . . 1 . 1 Low Security (%) 92 | 100 100 . 100 . 78 100 82 Level 1 7 | . . . . . 21 . 17 Level 2 . | . . . . . . . . Level 3 . | . . . . . . . . Level 4 . | . . . . . . . . Level 5 . | . . . . . . . . High Security . | . . . . . . . . Max Security . | . . . . . . . . Squads Dispatched 13 | . 2 . . . 3 1 7 Investigation 3 | . . . . . 1 . 2 Extermination 3 | . . . . . 1 1 1 Reinforcement 4 | . 2 . . . 1 . 1 Assault . | . . . . . . . . Garrison 3 | . . . . . . . 3 Intercept . | . . . . . . . . Searches Triggered . | . . . . . . . . Construction Impeded 2 | . . . . . 1 . 1 Haulers Reinforced . | . . . . . . . . Active Scanning Responses . | . . . . . . . . Cargo Convoy Interrupts . | . . . . . . . . Stealth | -11 -10 -10 -7 -7 -5 -4 -3 --------- Run | Yrd Mat Sub Rec Scr Fac Fac Res Distress Signals 5 | . 3 . . . 1 . 1 Communications Jammed 3 | . . . . . . . 3 Distress Signals 1 | . . . . . . . 1 Times Spotted 104 | . 20 14 . . 28 . 42 Peak Tracking Total 12 | . 5 3 . . 7 1 12 Tactical Retreats 8 | . 1 2 . . 1 . 4 Traps | -11 -10 -10 -7 -7 -5 -4 -3 ------- Run | Yrd Mat Sub Rec Scr Fac Fac Res Traps Triggered 3 | . 1 1 . . . 1 . Indirectly . | . . . . . . . . Trap Hack Attempts . | . . . . . . . . Triggered . | . . . . . . . . Disarmed . | . . . . . . . . Reprogrammed . | . . . . . . . . Reused . | . . . . . . . . Traps Extracted . | . . . . . . . . Installed . | . . . . . . . . Triggered . | . . . . . . . . Most Traps Carried 1 | . . . . 1 1 . . Machines | -11 -10 -10 -7 -7 -5 -4 -3 ---------- Run | Yrd Mat Sub Rec Scr Fac Fac Res Machines Disabled 3 | . . . . . 3 . . Max in Single Turn 2 | . . . . . 2 . . Garrison Access 1 | . . . . . . . 1 Machines Repaired . | . . . . . . . . Machines Dismantled . | . . . . . . . . Machines Sabotaged . | . . . . . . . . Overloaded Fab Kills . | . . . . . . . . Hacking | -11 -10 -10 -7 -7 -5 -4 -3 --------- Run | Yrd Mat Sub Rec Scr Fac Fac Res Machines Accessed 40 | . 8 1 10 8 4 1 8 Terminals 22 | . 6 . 6 . 3 1 6 Fabricators . | . . . . . . . . Repair Stations 3 | . 1 . . . 1 . 1 Recycling Units 5 | . 1 . 4 . . . . Scanalyzers . | . . . . . . . . Garrison Access 1 | . . . . . . . 1 Total Hacks 116 | . 31 5 19 34 8 2 17 Successful 77 | . 18 5 9 34 2 1 8 Failed 39 | . 13 . 10 . 6 1 9 Catastrophic 5 | . . . 2 . 1 . 2 Database Lockouts . | . . . . . . . . Manual 35 | . 13 . 11 . 6 1 4 Terminals 58 | . 25 . 12 . 6 2 13 Fabricators . | . . . . . . . . Repair Stations 9 | . 5 . . . 2 . 2 Recycling Units 8 | . 1 . 7 . . . . Scanalyzers . | . . . . . . . . Garrison Access 2 | . . . . . . . 2 Terminal Hacks 55 | . 11 5 1 34 . 1 3 Record 38 | . . 5 . 32 . . 1 Part Schematic 2 | . 2 . . . . . . Robot Analysis 4 | . 4 . . . . . . Prototype ID Bank 3 | . 3 . . . . . . Open Door 1 | . . . . 1 . . . Branch Access Points 2 | . . . 1 . . . 1 Alert Level 2 | . . . . . . 1 1 Locate Traps 1 | . 1 . . . . . . Hauler Manifests 1 | . 1 . . . . . . Derelict Proto ID Bank 1 | . . . . 1 . . . Fabricator Hacks . | . . . . . . . . Repair Station Hacks 8 | . 4 . . . 2 . 2 Scan Component 4 | . 2 . . . 1 . 1 Repair 4 | . 2 . . . 1 . 1 Recycling Unit Hacks 4 | . 1 . 3 . . . . Retrieve Components 4 | . 1 . 3 . . . . Scanalyzer . | . . . . . . . . Garrison Access Hacks 1 | . . . . . . . 1 Seal Access 1 | . . . . . . . 1 Unauthorized Hacks 9 | . 2 . 5 . . . 2 Terminals 9 | . 2 . 5 . . . 2 Botnet 4 | . 2 . 1 . . . 1 Operators 1 | . . . . . . . 1 Skim 4 | . . . 4 . . . . Fabricators . | . . . . . . . . Repair Stations . | . . . . . . . . Recycling Units . | . . . . . . . . Scanalyzers . | . . . . . . . . Garrison Access . | . . . . . . . . Data Cores Recovered 1 | . . . . . . . 1 Used . | . . . . . . . . Hacking Detections 27 | . 6 . 8 . 4 1 8 Full Trace Events 2 | . . . . . 1 . 1 Feedback Events . | . . . . . . . . Feedback Blocked . | . . . . . . . . Robot Schematics Acquired . | . . . . . . . . Robots Built . | . . . . . . . . Authchips . | . . . . . . . . Time . | . . . . . . . . Total Robot Build Rating . | . . . . . . . . Part Schematics Acquired 2 | . 2 . . . . . . Parts Built . | . . . . . . . . Authchips . | . . . . . . . . Time . | . . . . . . . . Total Part Build Rating . | . . . . . . . . Parts Repaired 4 | . 2 . . . 1 . 1 Time 110 | . 52 . . . 44 . 14 Parts Recycled . | . . . . . . . . Recycled Matter . | . . . . . . . . Retrieved Matter . | . . . . . . . . Retrieved Components 8 | . 4 . 4 . . . . Parts Scanalyzed . | . . . . . . . . Part Schematics Acquired . | . . . . . . . . Parts Damaged . | . . . . . . . . Bothacking | -11 -10 -10 -7 -7 -5 -4 -3 ------------ Run | Yrd Mat Sub Rec Scr Fac Fac Res Used RIF Installer . | . . . . . . . . Robots Hacked . | . . . . . . . . Non-combat . | . . . . . . . . Combat . | . . . . . . . . Robot Hacks Applied . | . . . . . . . . Relay Couplers Released . | . . . . . . . . Fabnet Peak Effective % . | . . . . . . . . Robots Rewired . | . . . . . . . . Allies Hacked . | . . . . . . . . Hacks Repelled . | . . . . . . . . Allies | -11 -10 -10 -7 -7 -5 -4 -3 -------- Run | Yrd Mat Sub Rec Scr Fac Fac Res Total Allies 1 | . . . . . 1 . . Largest Group 1 | . . . . . 1 . . Highest-Rated Group 56 | . . . . . 56 . . Highest-Rated Ally 56 | . . . . . 56 . . Total Orders . | . . . . . . . . Ally Attacks 11 | . . . . . 11 . . Total Damage 173 | . . . . . 173 . . Kills 1 | . . . . . 1 . . Allies Corrupted . | . . . . . . . . Allies Melted . | . . . . . . . . Intel | -11 -10 -10 -7 -7 -5 -4 -3 ------- Run | Yrd Mat Sub Rec Scr Fac Fac Res Robot Analysis Total 4 | . 4 . . . . . . Derelict Logs Recovered 3 | . . . . 3 . . . Drone Launches . | . . . . . . . . Drone Recoveries . | . . . . . . . . Exploration | -11 -10 -10 -7 -7 -5 -4 -3 ------------- Run | Yrd Mat Sub Rec Scr Fac Fac Res Turns Passed 12132 | 176 1856 2232 1043 3964 1182 574 1105 Spaces Moved 7066 | 77 868 1247 792 2596 507 407 572 Core 122 | 14 . . . . . . 108 Treads 2611 | 52 868 1247 . . . . 444 Legs 11 | 11 . . . . . . . Wheels 4310 | . . . 792 2596 507 407 8 Hover 12 | . . . . . . . 12 Flight . | . . . . . . . . Fastest Speed 50 | 50 160 160 115 100 90 103 50 Average Speed 148 | 142 160 160 124 150 165 125 124 Slowest Speed 260 | 160 160 260 130 205 220 145 145 Overloaded Moves . | . . . . . . . . Propulsion Burnouts . | . . . . . . . . Robots Hopped . | . . . . . . . . Cave-ins Triggered . | . . . . . . . . Exploration Rate (%) 50 | 7 99 68 98 93 13 11 15 Regions Visited 7 Branch Regions 3 Pre-discovered Areas 2 | . . 2 . . . . . Known Exits Taken . | . . . . . . . . Unknown Exits Taken 7 | 1 1 1 1 1 1 1 . Scrap Searched 6 | . . 4 . 2 . . . Spaces Dug 36 | . 3 7 2 . 11 5 8 Terrain Destroyed 186 | . 3 70 2 . 62 5 44 Melee 30 | . 3 1 2 . 11 5 8 Projectile 9 | . . 1 . . 8 . . AOE 147 | . . 68 . . 43 . 36 Terrain Rammed . | . . . . . . . . Walls Destroyed . | . . . . . . . . Machines Disabled . | . . . . . . . . Actions | -11 -10 -10 -7 -7 -5 -4 -3 --------- Run | Yrd Mat Sub Rec Scr Fac Fac Res Total 8249 | 111 1241 1377 838 2647 721 467 847 Wait 535 | 2 287 28 10 3 81 . 124 Move 7059 | 76 867 1246 791 2595 506 406 572 Hop . | . . . . . . . . Pick Up 128 | 7 14 8 8 33 27 16 15 Fast Attach 52 | 7 3 4 1 2 12 10 13 Attach 46 | 2 1 6 1 1 17 4 14 Detach 24 | 2 . 4 1 1 3 6 7 Swap 54 | . 11 19 7 2 7 2 6 Drop 82 | . 9 8 9 10 4 18 24 Fire 188 | 15 41 45 4 . 45 . 38 Melee 79 | . 6 9 6 . 19 5 34 Ram . | . . . . . . . . Kick . | . . . . . . . . Crush 2 | . 2 . . . . . . Escape Stasis . | . . . . . . . . Rewire . | . . . . . . . . Trap . | . . . . . . . . Miscellaneous . | . . . . . . . . Route ------- -11/Scrapyard -10/Materials (discovered 6 exits: [*Mat x3] / [*Min x2] / *Sub) -10/Subcaves (discovered 2 exits: [*Mat] / *Rec) -7/Recycling (discovered 2 exits: *Fac / *Scr) -7/Scraptown (discovered 2 exits: *Fac x2) -5/Factory -4/Factory -3/Research (discovered 2 exits: Tes x2) History --------- Turn | Location | Event 21 | -11/Scrapyard | Discovered new exit (range 16) 177 | -11/Scrapyard | Entered Materials 307 | -10/Materials | Build established: Mutant 431 | -10/Materials | Repaired Lgt. Treads 460 | -10/Materials | Repaired Seismic Detector 755 | -10/Materials | Discovered new exit (range 13) 905 | -10/Materials | Discovered new exit (range 15) 1004 | -10/Materials | Discovered new exit (range 6) 1199 | -10/Materials | Discovered new exit (range 15) 1627 | -10/Materials | Discovered new exit (range 16) 2020 | -10/Materials | Discovered new exit (range 10) 2033 | -10/Materials | Entered Subcaves 2356 | -10/Subcaves | Visited Clippyterm 2361 | -10/Subcaves | Learned location of Section 7 (-2) 2361 | -10/Subcaves | Learned Factory garrison access intel 2779 | -10/Subcaves | Disturbed a concealed Subdweller 3251 | -10/Subcaves | Learned location of Zion (-6) 3251 | -10/Subcaves | Met a Zionite searching for "candidates" 3585 | -10/Subcaves | Disturbed a concealed Subdweller 3591 | -10/Subcaves | Core integrity fell below 50% 3885 | -10/Subcaves | Discovered new exit (range 16) 4249 | -10/Subcaves | Discovered new exit (range 8) 4265 | -10/Subcaves | Entered Recycling 4539 | -7/Recycling | Discovered new exit (range 9) 5070 | -7/Recycling | Scanned before Scraplab entrance 5295 | -7/Recycling | Entered Scraplab 5304 | -7/Recycling | Discovered new exit (range 3) 5308 | -7/Recycling | Entered Scraptown 5308 | -7/Scraptown | System corruption cleaned by C-Scrubber 5638 | -7/Scraptown | Scanned Subdweller tech in exchange for log data 5641 | -7/Scraptown | Learned Research stockpile data 5642 | -7/Scraptown | Learned Factory emergency access door positions 5643 | -7/Scraptown | Learned Factory security intel 5662 | -7/Scraptown | Discovered new exit (range 5) 5783 | -7/Scraptown | Visited Cave Peace 5837 | -7/Scraptown | Visited Cyclists 5896 | -7/Scraptown | Visited Awakened 5942 | -7/Scraptown | Visited Symbiants 6148 | -7/Scraptown | Visited UFD Registry 6148 | -7/Scraptown | Registered with UFD as "Gammabomber" 6236 | -7/Scraptown | Visited Curators Association 6295 | -7/Scraptown | Visited Sword Containment 6386 | -7/Scraptown | Discovered new exit (range 5) 6426 | -7/Scraptown | Visited Science Guys 6465 | -7/Scraptown | Visited Botcube Research 6544 | -7/Scraptown | Visited Scrap Suit Storage 6600 | -7/Scraptown | Visited Abandonware Association 6618 | -7/Scraptown | Learned abandonware demo "ERRANTS.EXE" 6669 | -7/Scraptown | Visited Chapter 10 6904 | -7/Scraptown | Visited LU-1G1's Boring Crew 6984 | -7/Scraptown | Found Botcube 7011 | -7/Scraptown | Found Scrap Suit 7422 | -7/Scraptown | Build established: Hauler-Mutant 7574 | -7/Scraptown | Visited Red Mages 7621 | -7/Scraptown | Visited Fellowship of the Rings 7750 | -7/Scraptown | Visited CR-KLE's Repair Center 8067 | -7/Scraptown | Found Scrap Suit 8671 | -7/Scraptown | CR-KLE repaired 3 parts 9272 | -7/Scraptown | Entered Factory 9272 | -5/Factory | Evolved 10 slots: Power x1, Propulsion x2, Utility x5, Weapon x2 9275 | -5/Factory | Loaded intel: 4 garrison access locations 9627 | -5/Factory | Destroyed 9 combat bots 9634 | -5/Factory | Lost 6 parts (1p1n2u2w) 9923 | -5/Factory | Build established: Hauler-Gunner 10042 | -5/Factory | Discovered new exit (range 6) 10157 | -5/Factory | Repaired Arm. Huge Wheel 10242 | -5/Factory | Botcube activated 10258 | -5/Factory | Botcube completed mutation into legged form, armed with 1 gun, 1 melee weapon. 10306 | -5/Factory | Lost 9 parts (2p1n3u3w) 10420 | -5/Factory | Murdered Mutated Botcube 10454 | -5/Factory | Entered another Factory area 10454 | -4/Factory | Evolved 2 slots: Propulsion x1, Utility x1 10824 | -4/Factory | Discovered new exit (range 16) 10864 | -4/Factory | System corruption reached 10% 10922 | -4/Factory | Build established: Gunner 11028 | -4/Factory | Entered Research 11028 | -3/Research | Evolved 2 slots: Power x1, Propulsion x1 11150 | -3/Research | Garrison activated, responded to threat 11221 | -3/Research | Repaired Arm. Huge Wheel 11585 | -3/Research | Identified exit to Testing 11944 | -3/Research | Garrison activated, responded to threat 12070 | -3/Research | Released all parts (5) 12072 | -3/Research | Core integrity fell below 50% 12075 | -3/Research | Lost 21 parts (4p6n6u5w) 12117 | -3/Research | Core integrity fell below 20% 12133 | -3/Research | Destroyed by G-67 Veteran with Field Laser Last Messages --------------- 12070_ Released Arm. Huge Wheel. 12070_ Released Adv. Targeting Computer. 12070_ Released Core Analyzer. 12070_ Released Lrg. Storage Unit. 12070_ Released Companion Sword. Companion Sword: "Dropping me on the ground isn't good for our relationship." 12076_ System corrupted: Heat flow error (+186). 12076_ Critical hit (Burn: +50). 12077_ P-80 Master resets P-80 Master, system corruption cleaned. 12092_ Acquired 92 matter. 12096_ P-80 Master resets K-01 Serf, system corruption cleaned. 12103_ Acquired 18 matter. 12104_ Dropped Com. Battery. 12105_ System corrupted: Component data lost. 12107_ Acquired Antigrav Array. 12116_ Dropped Antigrav Array. 12127_ K-01 Serf destroyed. Map ----- +----------------------------------------------------+ | #???????????# # = # #???????# | | ##### #???????????# ## ## #???????# | | ????# #???????????# "# #"#######???????#"" | | ????# ###+############### ###?????????????#"T | | ????# #???????????????#"" | | ????# ##### #???????????????# | | ????# #####+#####???????????# | | ????# """ # #???????????# "" | | ????# """ " " # #???????????# "" | | ????# """ " " # #???????????# "" | | ????# ""G"" # " " #???????????# | | % + ""R"" #???????????# | | = s # """"" #???????????##### | | s # #???????????????? | | ##########s # [ #???????????????? | | ########????????# ###########???????????????? | | ????????????????# #"""""""""""#?????????????? | | ?????????????????# # """"T"""" ###???????????? | | ??????????????????+ ??????????? | | ??????????????????#^ b g ??????????? | | ??????????????????# g g ^ ??????????? | | ??????????????????# ^ ?????????? | | ??????????????????# ??????????? | | ??????????????????#^ """???????????? | | ??????????????????# ^ """???????????? | | ??????????????????# @ """???????????? | | ??????????????????# ????????? | | ??????????????????# """ """ ????????? | | ??????????????????# """T""" ?????????? | | ??????????????????############### ###?????????? | | ?????????????????????????????????? #???????????? | | ??????????????????????????????????? ?#???????????? | | ?????????????????????????????????????????????????? | | ?????????????????????????????????????????????????? | | ?????????????????????????????????????????>???????? | | ?????????????????????????????????????????????????? | | ?????????????????????????????????????????????????? | | ?????????????????????????????????????????????????? | | ?????????????????????????????????????????????????? | | ?????????????????????????????????????????????????? | | ?????????????????????????????????????????????????? | | ?????????????????????????????????????????????????? | | ?????????????????????????????????????????????????? | | ?????????????????????????????????????????????????? | | ?????????????????????????????????????????????????? | | ?????????????????????????????????????????????????? | | ?????????????????????????????????????????????????? | | ?????????????????????????????????????????????????? | | ?????????????????????????????????????????????????? | | ?????????????????????????????????????????????????? | +----------------------------------------------------+ Best States ------------- Heat Dissipation 84 Energy Generation 57 Energy Capacity 650 Matter Stores 317 Matter Capacity 450 Sight Range 22 Terrain Scan Range 16 Terrain Scan Density 10 Jamming Range 12 Base Temperature (-) 200 Armor Coverage 600 Evasion (%) 50 Targeting Accuracy 8 Core Analysis 6 Recoil Reduction 6 Authchip Count 1 Item Schematics ----------------- Huge Storage Unit | -10/Materials | Hacked Hcp. Storage Unit | -10/Materials | Hacked Robot Schematics ------------------ None Fabricated ------------ Nothing Alien Tech Used ----------------- None Achievements -------------- None Challenges ------------ None Game ------ Seed BlastPhaseAutogun Manual? 0 Play Time 01:39:12 Cumulative 87.5 hours Start 2024.11.23 @ 16:21:38 End 2024.11.24 @ 16:33:53 Sessions 7 Manual Loads 0 Difficulty Rogue Special Mode None Game No. 55 Rogue 55 Adventurer 0 Explorer 0 Win Type - Total 1 Types 1/0/0/0/0/0/0/0/0 Lore% 45 Gallery% 57 Achievement% 44 Wizard Run 0 Options --------- Layout 2 ASCII 0 Keyboard 1 Movement Numpad Keybinds 0 Fullscreen 2 Font 24/Terminus Map View 50x49 Zoom Use 0% Tactical HUD 1 Map Filters NONE Filters NONE Steam 1 RUN: aa384ce7-58ec-4430-bae7-f20af74ee829